bitfinex/quotes_ETHUSD_20251024
["timestamp","ask_amount","ask_price","bid_price","bid_amount"]
[1761318801191,0.4557,3924.6,3924.0,2.54840041]
[1761318801429,0.4557,3924.6,3923.7,2.54857145]
[1761318801430,0.4557,3924.6,3923.7,2.54861139]
[1761318801603,3.407,3924.5,3924.0,1.5552]
[1761318801803,3.407,3924.5,3924.4,2.54816022]
[1761318802004,0.7757,3925.6,3924.0,1.5552]
[1761318802205,3.41,3925.5,3925.1,2.54769123]
[1761318802404,0.7757,3925.6,3925.4,2.54746421]
[1761318802634,0.32,3925.6,3923.9,0.4371]
[1761318802796,0.32,3925.6,3925.4,2.54751108]
[1761318802797,3.409,3925.5,3925.4,2.54751108]
[1761318803129,0.32,3925.6,3925.4,2.54751108]
[1761318803346,0.32,3925.6,3925.2,2.54763475]
[1761318803347,3.8625,3925.5,3925.2,2.54762383]
[1761318803497,3.8625,3925.5,3924.2,2.54829009]
[1761318803498,3.8625,3925.5,3924.9,2.54783519]
[1761318804232,3.8625,3925.5,3924.2,1.5552]
[1761318804529,3.8625,3925.5,3924.9,2.54778309]
[1761318804758,0.96038,3925.4,3923.0,0.4371]
[1761318804902,2.54786902,3924.9,3924.0,2.54837445]
[1761318805103,5.95891887,3924.8,3924.0,2.54837445]
[1761318805330,3.411,3924.8,3923.8,0.2085]
[1761318805546,3.6434,3924.7,3924.2,2.54823414]
[1761318805829,3.6434,3924.7,3924.3,2.54821472]
[1761318806036,2.54756504,3925.4,3924.3,2.54821472]
[1761318806037,3.411,3924.6,3924.3,2.54817038]
[1761318806197,3.411,3924.6,3924.1,0.02548355]
[1761318806198,3.411,3924.5,3924.4,2.54815158]
[1761318806398,0.4496,3925.3,3923.8,0.2085]
[1761318806596,0.1272,3924.5,3924.0,0.1272]
[1761318806815,0.32,3925.6,3924.4,2.54816022]
[1761318807033,0.32,3925.6,3925.1,2.54769593]
[1761318807235,0.931,3925.5,3925.2,2.54762019]
[1761318807600,0.32,3925.6,3924.2,0.4371]
[1761318808137,1.163,3925.5,3924.6,2.54800386]
[1761318808335,1.163,3925.5,3923.8,0.2085]
[1761318808336,1.6126,3925.5,3923.8,0.2085]
[1761318808507,0.4496,3925.4,3924.2,2.54828207]
[1761318808701,3.412,3925.3,3923.8,0.6456]
[1761318808907,2.54770989,3925.1,3923.8,0.6456]
[1761318809107,5.96277752,3925.0,3923.9,2.54848492]
[1761318809299,3.415,3925.0,3923.8,0.2085]
[1761318809529,2.5479873,3924.7,3923.7,1.5552]
[1761318809732,2.54791241,3924.8,3924.0,2.54841297]
[1761318809940,2.54797336,3924.7,3923.9,2.54846373]
[1761318810242,0.4496,3924.9,3924.8,2.54790052]
[1761318810243,3.414,3924.9,3924.8,2.54790052]
[1761318810609,0.32,3925.6,3924.4,1.5552]
[1761318810810,0.32,3925.6,3925.4,2.54750501]
[1761318811124,0.32,3925.6,3924.4,1.9923]
[1761318811125,1.341,3925.5,3925.1,2.54768911]
[1761318811436,1.341,3925.5,3924.5,2.54807198]
[1761318811437,1.341,3925.5,3925.3,2.54756563]
[1761318811613,0.32,3925.6,3924.5,0.4371]
[1761318811816,1.279,3925.5,3924.5,0.4371]
[1761318812133,0.32,3925.6,3925.5,2.54744618]
[1761318812343,3.738,3925.6,3925.4,2.54746656]
[1761318812525,0.32,3925.6,3925.5,2.54744618]
[1761318812925,1.659,3925.6,3925.5,2.54744618]
[1761318813130,0.7829,3925.6,3923.2,0.4371]
[1761318813428,0.50688,3925.4,3924.0,2.54841547]
[1761318813615,2.54788889,3924.9,3923.1,1.5552]
[1761318813809,2.5480198,3924.7,3923.9,2.54847393]
[1761318814147,3.421,3924.6,3922.5,0.6468]
[1761318814440,2.54856759,3923.8,3922.5,0.2097]
[1761318814623,3.421,3923.7,3922.5,0.2097]
[1761318815247,5.96963263,3923.7,3922.9,2.54911565]
[1761318815635,3.8815,3923.7,3923.1,2.54894734]
[1761318816020,6.4301212,3923.7,3923.0,2.54905447]
[1761318816217,0.4605,3923.7,3923.1,2.54899324]
[1761318816408,3.418,3923.6,3923.1,2.54899324]
[1761318816738,3.418,3923.6,3922.5,0.2097]
[1761318816938,2.54893127,3923.3,3922.6,2.54932041]
[1761318817148,0.1272,3922.7,3922.6,2.54932041]
[1761318817451,3.5442,3922.7,3922.5,0.002]
[1761318818405,0.4478,3922.6,3922.5,0.002]
[1761318818812,2.99712952,3922.6,3922.5,0.002]
[1761318819013,3.50400952,3922.6,3922.5,0.002]
[1761318820510,5.73665162,3922.6,3922.5,0.002]
[1761318820709,5.74223425,3922.6,3922.5,0.002]
[1761318821149,5.05920952,3922.6,3922.5,0.002]
[1761318823516,6.09334422,3922.6,3922.5,0.002]
[1761318824052,5.96246566,3922.6,3922.5,0.002]
[1761318824347,0.50688,3921.5,3919.3,0.4632]
[1761318824566,2.55050133,3920.8,3919.4,2.55141093]
[1761318824771,1.273,3920.7,3920.0,2.55100886]
[1761318824911,0.4478,3921.4,3920.1,0.2085]
[1761318825111,0.4478,3921.4,3920.1,0.6717]
[1761318825112,2.32,3921.3,3920.1,0.6717]
[1761318825549,2.32,3921.3,3920.3,2.55078347]
[1761318825779,2.32,3921.3,3920.1,0.2085]
[1761318825955,0.4478,3921.3,3920.1,0.2085]
[1761318826260,2.54983453,3921.9,3920.1,0.2085]
[1761318826261,3.412,3921.2,3920.2,0.4632]
[1761318826412,3.412,3921.2,3920.3,2.55082519]
[1761318826628,3.412,3921.2,3920.1,0.2085]
[1761318826826,3.412,3921.2,3920.2,2.55089026]
[1761318827062,3.8598,3921.2,3920.1,0.2085]
[1761318827234,3.412,3921.2,3920.1,0.2085]
[1761318827439,5.96224342,3921.2,3920.2,2.55087575]
[1761318827642,3.412,3921.2,3920.1,0.2085]
[1761318827875,3.413,3921.1,3920.1,0.2085]
[1761318828051,3.412,3921.0,3920.6,2.55057948]
[1761318828255,2.55010965,3921.4,3920.6,2.55057948]
[1761318828450,3.412,3921.3,3920.7,2.55050991]
[1761318828953,0.2248,3921.6,3920.2,0.4632]
[1761318829148,3.411,3921.5,3920.9,2.55042562]
[1761318829455,3.41,3921.4,3921.0,2.550337]
[1761318829656,3.41,3921.3,3921.1,2.55029863]
[1761318829830,3.412,3921.2,3920.3,1.5552]
[1761318830029,3.411,3921.1,3921.0,2.5503698]
[1761318830267,2.54984959,3921.8,3920.8,2.55045306]
[1761318830531,0.1272,3921.2,3920.9,2.55037817]
[1761318830885,3.411,3921.1,3921.0,2.55032953]
[1761318831177,3.411,3921.1,3921.0,2.5503698]
[1761318831339,3.411,3921.1,3920.7,2.55056495]
[1761318831525,3.411,3921.1,3920.7,2.55050923]
[1761318831732,3.411,3921.1,3920.8,2.55049989]
[1761318831733,0.1272,3920.9,3920.8,2.55049989]
[1761318831931,0.1272,3920.9,3920.7,2.55054478]
[1761318832230,0.1272,3920.9,3920.8,2.55049989]
[1761318832854,3.5342,3920.9,3920.8,2.55049989]
[1761318833069,0.2248,3922.1,3921.1,2.55025597]
[1761318833272,0.1272,3921.2,3920.6,0.1272]
[1761318833588,3.406,3921.1,3920.8,2.55043933]
[1761318833776,3.406,3921.1,3920.4,0.4632]
[1761318833777,3.406,3921.1,3921.0,2.5503698]
[1761318834856,2.99760593,3921.9,3921.2,2.55019843]
[1761318835169,5.95586027,3921.8,3921.0,2.55035507]
[1761318835367,3.406,3921.8,3920.8,2.55046684]
[1761318835545,3.406,3921.8,3920.4,0.4632]
[1761318835546,2.55015478,3921.4,3920.5,2.55069506]
[1761318835741,2.55015478,3921.4,3920.4,2.55075423]
[1761318835946,3.406,3921.8,3920.3,3.82]
[1761318836146,2.99795596,3921.4,3920.7,2.55056173]
[1761318836355,2.54992299,3921.7,3920.8,2.55049848]
[1761318836543,3.8538,3921.8,3920.8,2.55049848]
[1761318836776,2.55006288,3921.5,3920.7,2.550542]
[1761318836960,2.55006288,3921.5,3920.8,2.55249226]
[1761318837150,2.55012315,3921.4,3920.8,0.002]
[1761318837547,2.5501915,3921.3,3920.8,0.002]
[1761318837752,2.55023972,3921.2,3920.8,0.002]
[1761318839070,2.55031304,3921.1,3920.8,0.002]
[1761318839480,2.5504047,3921.0,3920.8,0.002]
[1761318839651,5.94743484,3920.9,3920.8,0.002]
[1761318839854,6.17473484,3920.9,3920.8,0.002]
[1761318840193,3.3962,3920.9,3920.8,0.002]
[1761318840401,3.396,3920.9,3920.8,0.002]
[1761318842118,3.394,3920.9,3920.8,0.002]
[1761318843093,6.63583484,3920.9,3920.8,0.002]
[1761318843616,0.1272,3920.9,3920.8,0.002]
[1761318843784,3.5192,3920.9,3920.8,0.002]
[1761318845507,19.98566583,3920.9,3918.0,0.90171642]
[1761318845722,19.98566583,3920.9,3917.8,0.2085]
[1761318845723,0.50688,3919.7,3918.1,0.4595]
[1761318845881,5.9633068,3919.6,3918.5,2.55194899]
[1761318846194,5.9633068,3919.6,3918.0,1.5552]
[1761318846195,0.4621,3919.5,3918.0,1.5552]
[1761318846390,2.55187169,3918.7,3917.9,2.55236785]
[1761318846591,3.411,3918.6,3917.8,2.76095034]
[1761318846794,5.96294091,3918.6,3917.9,1.5552]
[1761318846993,3.411,3918.6,3917.9,2.55234037]
[1761318847196,5.96295027,3918.6,3917.8,0.2085]
[1761318847394,5.96295027,3918.6,3917.9,2.55237227]
[1761318847599,2.55201978,3918.5,3917.8,0.2085]
[1761318847797,2.55211657,3918.4,3917.8,0.2085]
[1761318848007,2.55201834,3918.5,3917.8,0.2085]
[1761318848324,3.8728,3918.6,3917.1,0.4585]
[1761318848473,2.55211943,3918.4,3917.6,2.55253578]
[1761318848676,3.408,3918.3,3917.9,2.55232314]
[1761318848906,3.408,3918.3,3917.9,0.4585]
[1761318849122,3.408,3918.3,3918.2,2.55219233]
[1761318849285,3.407,3918.3,3918.2,2.55219233]
[1761318849595,2.55155186,3919.2,3918.2,2.55219233]
[1761318849596,2.77792628,3919.4,3918.3,2.55212719]
[1761318849805,3.407,3919.3,3918.6,2.5518781]
[1761318850005,3.407,3919.2,3918.6,2.5518781]
[1761318851115,3.406,3919.1,3918.1,2.76069628]
[1761318851291,2.55169595,3919.0,3918.3,2.55209935]
[1761318851614,3.406,3918.9,3918.1,0.2085]
[1761318851818,5.95784638,3918.8,3917.9,1.5552]
[1761318852001,2.55159078,3919.2,3918.2,2.55217048]
[1761318852179,2.55159078,3919.2,3918.0,3.01081843]
[1761318852180,3.405,3919.1,3918.3,0.2085]
[1761318852382,5.95661828,3919.1,3918.4,2.55205871]
[1761318852611,0.2265,3919.4,3918.3,2.76062478]
[1761318852913,3.404,3919.3,3918.6,2.55191796]
[1761318853111,5.95548146,3919.3,3918.6,2.55191796]
[1761318853608,3.405,3919.2,3918.3,0.667]
[1761318853978,2.55164472,3919.1,3918.3,2.76061079]
[1761318854207,3.403,3919.0,3918.6,2.55190388]
[1761318854407,3.403,3919.0,3918.3,0.2085]
[1761318854596,3.403,3919.0,3918.7,2.55182205]
[1761318854797,0.2265,3919.4,3918.7,2.55182196]
[1761318854798,3.402,3918.9,3918.7,2.55182196]
[1761318855010,3.402,3918.8,3918.6,2.55191617]
[1761318856083,3.402,3918.8,3918.5,2.55198401]
[1761318856232,0.2265,3919.8,3919.2,2.5514806]
[1761318856538,3.399,3919.7,3918.6,0.4585]
[1761318856863,0.2265,3919.9,3918.6,0.4585]
[1761318856864,3.399,3919.6,3919.1,2.55159259]
[1761318857065,3.399,3919.6,3918.8,2.55179201]
[1761318857066,3.399,3919.6,3919.2,2.55153906]
[1761318857275,1.19227362,3920.6,3918.6,0.4585]
[1761318857276,0.2259,3920.4,3919.5,0.2085]
[1761318857428,0.68639362,3920.8,3919.5,0.2085]
[1761318857634,2.836,3920.7,3919.6,0.4585]
[1761318857833,0.001,3920.8,3919.7,2.55121565]
[1761318858054,3.399,3920.6,3919.8,1.5552]
[1761318858270,3.399,3920.6,3919.8,4.10629784]
[1761318858560,3.23831496,3920.8,3919.7,1.5552]
[1761318858766,3.4,3920.7,3920.1,2.55090664]
[1761318858941,3.4,3920.7,3920.2,2.55087456]
[1761318859137,3.4,3920.7,3920.1,2.55093263]
[1761318859341,3.4,3920.7,3920.2,2.55086343]
[1761318859866,3.4,3920.7,3920.2,2.55087685]
[1761318860089,0.2275,3920.8,3920.2,2.55087685]
[1761318860090,0.001,3920.8,3920.2,2.55089026]
[1761318860254,3.4,3920.6,3920.3,2.55077046]
[1761318860773,3.4,3920.6,3920.4,2.55075629]
[1761318861182,3.4,3920.6,3920.1,2.55090275]
[1761318861335,0.4603,3920.5,3919.6,2.55128074]
[1761318861669,2.55056728,3920.7,3920.0,2.55097453]
[1761318861875,3.396,3920.6,3920.1,2.55094364]
[1761318862481,3.396,3920.6,3919.6,0.4585]
[1761318862680,0.001,3920.8,3920.3,2.55081503]
[1761318862885,3.395,3920.5,3920.3,2.55081503]
[1761318863485,0.001,3920.8,3920.4,2.55075739]
[1761318863666,3.393,3920.4,3920.2,2.76254639]
[1761318863981,0.001,3920.8,3920.3,2.55082519]
[1761318864145,3.3912,3920.7,3920.5,2.55063061]
[1761318864347,0.001,3920.8,3920.5,2.55063061]
[1761318864536,3.392,3920.6,3920.2,2.55083167]
[1761318865166,3.392,3920.6,3919.5,4.31500316]
[1761318865167,3.392,3920.6,3920.1,2.55094284]
[1761318865332,3.392,3920.6,3917.8,0.002]
[1761318865539,15.39738583,3920.1,3917.8,0.002]
[1761318865772,0.50688,3919.5,3917.8,0.002]
[1761318865978,0.50688,3919.2,3917.8,0.002]
[1761318866179,2.55181109,3918.8,3918.1,2.55225023]
[1761318866431,3.428,3918.7,3917.8,0.002]
[1761318866636,3.428,3918.7,3917.9,1.5552]
[1761318866637,0.128,3918.4,3917.9,1.5552]
[1761318866954,0.128,3918.4,3917.9,2.55237552]
[1761318868539,2.55201829,3918.5,3917.8,0.002]
[1761318868778,0.128,3918.1,3917.9,1.5552]
[1761318868964,3.424,3918.0,3917.9,4.10757037]
[1761318869278,3.424,3918.0,3917.8,0.002]
[1761318869443,3.424,3918.0,3917.9,4.10758775]
[1761318871600,3.424,3918.0,3917.9,1.5552]
[1761318872601,3.424,3918.0,3917.9,4.10758775]
[1761318874415,3.424,3918.0,3917.9,4.10958775]
[1761318875619,0.128,3918.1,3918.0,2.55232261]
[1761318875781,3.416,3918.1,3918.0,2.55232261]
[1761318876219,2.55146768,3919.4,3918.0,0.4585]
[1761318876398,0.1272,3918.7,3918.5,2.5519968]
[1761318876694,0.1272,3918.7,3918.6,2.55193181]
[1761318876875,3.5382,3918.7,3918.6,2.55193181]
[1761318877075,3.41,3918.7,3918.3,2.55212262]
[1761318877289,3.41,3918.7,3918.5,2.55195587]
[1761318877512,3.41,3918.7,3918.6,2.55193181]
[1761318878500,3.41,3918.7,3918.6,3.01723181]
[1761318878724,3.41,3918.7,3918.4,2.68005645]
[1761318878725,0.1272,3919.0,3918.9,2.55173645]
[1761318878898,3.409,3918.7,3918.6,2.55193181]
[1761318879413,3.408,3918.7,3918.6,4.69963181]
[1761318879737,3.408,3918.7,3918.6,4.23433181]
[1761318880440,0.68539362,3920.6,3919.2,2.55154113]
[1761318880637,2.352,3920.5,3920.1,2.55095342]
[1761318880793,2.352,3920.5,3920.2,2.55087055]
[1761318881001,2.352,3920.5,3920.3,2.55081088]
[1761318881627,2.352,3920.5,3919.6,0.2085]
[1761318881863,0.4623,3920.4,3919.1,0.2085]
[1761318882125,3.416,3920.3,3918.5,2.55199693]
[1761318882324,3.416,3920.3,3919.7,2.55115605]
[1761318882529,3.01079026,3920.2,3918.5,0.4653]
[1761318882736,2.55095533,3920.1,3919.3,2.55147038]
[1761318883039,2.55107922,3920.0,3918.8,2.55175395]
[1761318883326,0.4599,3920.0,3919.0,2.55162834]
[1761318883526,0.4599,3920.0,3918.4,0.4653]
[1761318883527,2.55119472,3919.8,3919.1,2.55159278]
[1761318883728,3.415,3919.7,3919.1,2.55159278]
[1761318883929,3.8682,3919.7,3918.7,1.5552]
[1761318884114,2.55136662,3919.5,3918.3,0.2085]
[1761318884316,3.00450203,3919.6,3918.9,2.5517204]
[1761318884722,0.4532,3919.6,3918.5,1.5552]
[1761318884936,0.4532,3919.6,3919.0,2.55161991]
[1761318885310,3.00449529,3919.6,3918.9,2.55171719]
[1761318885510,0.4532,3919.6,3918.9,2.55169112]
[1761318885730,0.4532,3919.6,3919.0,2.55166849]
[1761318885936,0.4532,3919.6,3918.8,2.55179935]
[1761318886133,2.5513596,3919.5,3918.8,2.55175854]
[1761318886341,3.00450323,3919.6,3918.9,2.55173333]
[1761318886649,0.4532,3919.6,3919.0,2.55165615]
[1761318887045,3.415,3919.7,3919.0,2.55165615]
[1761318887233,0.2331,3919.9,3919.1,0.2085]
[1761318887436,3.8622,3919.8,3918.3,0.2085]
[1761318887623,3.8622,3919.8,3919.2,2.5514958]
[1761318887824,3.8622,3919.8,3918.6,1.5552]
[1761318888024,3.8622,3919.8,3919.2,2.55153001]
[1761318888256,3.8614,3919.8,3919.2,2.55153001]
[1761318888759,3.8614,3919.8,3919.1,0.2085]
[1761318888760,3.4082,3919.8,3919.1,0.2085]
[1761318889073,0.2331,3919.9,3919.1,0.2085]
[1761318889273,3.41,3919.8,3919.1,0.2085]
[1761318889570,3.41,3919.8,3919.6,2.55124232]
[1761318889730,3.41,3919.8,3919.7,2.55121565]
[1761318889930,3.408,3919.8,3919.7,2.55121565]
[1761318890456,0.1272,3919.8,3919.7,2.55121565]
[1761318890652,3.5342,3919.8,3919.7,2.55121565]
[1761318891155,0.1272,3919.8,3919.7,2.55121565]
[1761318891385,0.50688,3920.6,3919.2,3.01680413]
[1761318891386,3.00387278,3920.6,3919.2,3.01680413]
[1761318891523,0.1272,3920.0,3919.4,0.1272]
[1761318891728,3.405,3919.9,3919.8,2.55109355]
[1761318892190,0.4542,3920.8,3919.9,2.55108548]
[1761318892329,0.1272,3920.1,3919.9,2.55108548]
[1761318892530,0.1272,3920.1,3920.0,2.5510204]
[1761318892864,3.5302,3920.1,3920.0,2.5510204]
[1761318893200,3.9834,3920.1,3919.6,0.1272]
[1761318893402,0.6863,3920.0,3919.1,0.3357]
[1761318893564,0.1272,3919.7,3919.1,0.3357]
[1761318893769,3.405,3919.6,3919.4,2.55135261]
[1761318894165,3.405,3919.6,3919.4,2.55138154]
[1761318894367,3.405,3919.6,3919.5,2.55134583]
[1761318894564,3.5322,3919.6,3919.5,2.55134583]
[1761318896169,3.5322,3919.6,3919.2,2.55153291]
[1761318896369,3.5322,3919.6,3919.4,2.55138764]
[1761318896996,3.5322,3919.6,3919.2,2.55153291]
[1761318897270,3.5322,3919.6,3919.2,2.55153473]
[1761318897490,3.405,3919.6,3919.0,0.6282]
[1761318897670,0.1272,3919.4,3919.1,2.55154476]
[1761318897870,0.4492,3919.5,3919.0,3.05265459]
[1761318898072,0.4492,3919.5,3919.0,3.05266028]
[1761318898366,3.00056158,3919.5,3919.0,0.501]
[1761318898700,0.4492,3919.5,3919.0,0.501]
[1761318898906,0.4492,3919.4,3919.0,0.501]
[1761318899092,2.55160623,3919.1,3919.0,0.501]
[1761318899470,6.40480623,3919.1,3919.0,0.501]
[1761318900795,6.91168623,3919.1,3919.0,0.501]
[1761318901402,8.46688623,3919.1,3919.0,0.501]
[1761318901607,9.38074439,3919.1,3919.0,0.501]
[1761318902197,8.46688623,3919.1,3919.0,0.501]
[1761318903189,9.38074439,3919.1,3919.0,0.501]
[1761318903389,6.97688623,3919.1,3919.0,0.501]
[1761318903591,0.68585707,3919.2,3919.0,0.501]
[1761318903816,3.8472,3919.1,3919.0,0.501]
[1761318904475,3.398,3919.1,3919.0,0.501]
[1761318905121,3.00049941,3919.6,3919.0,0.501]
[1761318905272,1.42073816,3920.1,3919.0,0.501]
[1761318905273,1.13505707,3920.1,3919.0,0.501]
[1761318905483,2.55122501,3919.7,3919.0,3.05265494]
[1761318905676,3.8462,3919.9,3919.0,0.501]
[1761318905911,1.13505707,3919.8,3919.0,0.501]
[1761318906081,2.55152501,3919.3,3919.0,0.501]
[1761318906277,3.398,3919.2,3919.0,0.501]
[1761318906601,3.398,3919.1,3919.0,0.501]
[1761318906800,3.397,3919.1,3919.0,0.501]
[1761318907581,5.94860623,3919.1,3919.0,0.501]
[1761318907807,3.5242,3919.1,3919.0,0.501]
[1761318908214,6.07580623,3919.1,3919.0,0.501]
[1761318908417,6.52900623,3919.1,3919.0,0.501]
[1761318908920,8.59108623,3919.1,3919.0,0.501]
[1761318909224,9.50494439,3919.1,3919.0,0.501]
[1761318909423,8.59108623,3919.1,3919.0,0.501]
[1761318909788,8.08420623,3919.1,3919.0,0.501]
[1761318909990,8.59108623,3919.1,3919.0,0.501]
[1761318911728,8.59108623,3919.1,3917.9,0.002]
[1761318911729,2.55232261,3918.0,3917.9,0.002]
[1761318911887,2.55238775,3917.9,3917.8,0.002]
[1761318912226,3.05946321,3917.6,3917.5,0.002]
[1761318912526,8.38346321,3917.6,3917.5,0.002]
[1761318912734,8.84216321,3917.6,3917.5,0.002]
[1761318913287,3.01128321,3917.6,3917.5,0.002]
[1761318913540,6.92616321,3917.6,3917.5,0.002]
[1761318913992,6.41928321,3917.6,3917.5,0.002]
[1761318914392,2.55258321,3917.6,3917.5,0.002]
[1761318914613,5.95958321,3917.6,3917.5,0.002]
[1761318914815,6.41828321,3917.6,3917.5,0.002]
[1761318914989,5.95958321,3917.6,3917.5,0.002]
[1761318915509,6.41828321,3917.6,3917.5,0.002]
[1761318916650,5.95958321,3917.6,3917.5,0.002]
[1761318916854,6.41828321,3917.6,3917.5,0.002]
[1761318917239,5.95958321,3917.6,3917.5,0.002]
[1761318917847,6.41828321,3917.6,3917.5,0.002]
[1761318918848,6.92516321,3917.6,3917.5,0.002]
[1761318920651,0.6784,3918.1,3917.5,0.002]
[1761318920853,4.46758321,3917.6,3917.5,0.002]
[1761318921156,7.86758321,3917.6,3917.5,0.002]
[1761318921327,8.32628321,3917.6,3917.5,0.002]
[1761318921850,8.45428321,3917.6,3917.5,0.002]
[1761318924362,0.128,3917.6,3917.5,0.002]
[1761318924654,3.394,3917.6,3917.5,4.55692649]
[1761318925152,3.394,3917.6,3917.5,4.10984837]
[1761318925756,3.394,3917.6,3917.5,0.002]
[1761318926251,0.2197,3918.3,3917.5,3.00168496]
[1761318926450,3.394,3918.2,3917.6,2.5525317]
[1761318927045,3.394,3918.2,3917.5,0.002]
[1761318927046,2.55231213,3918.1,3917.5,0.002]
[1761318927252,3.394,3918.2,3917.5,0.002]
[1761318927455,2.55253227,3917.7,3917.5,0.002]
[1761318927619,0.4587,3918.1,3917.5,0.002]
[1761318927620,0.90500188,3918.6,3917.5,0.002]
[1761318927821,2.55206206,3918.4,3917.5,0.002]
[1761318928019,3.393,3918.3,3917.6,2.55254318]
[1761318928221,2.55230302,3918.1,3917.5,0.002]
[1761318928456,0.4587,3918.2,3917.5,0.002]
[1761318928621,2.55237348,3918.0,3917.5,0.002]
[1761318928817,3.393,3917.9,3917.5,0.002]
[1761318929244,2.55258321,3917.6,3917.5,0.002]
[1761318930155,3.01128321,3917.6,3917.5,0.002]
[1761318931285,0.4587,3917.6,3917.5,0.002]
[1761318931436,0.68630188,3918.2,3917.5,0.002]
[1761318931641,3.389,3918.1,3917.5,0.002]
[1761318931883,0.001,3918.6,3918.1,1.7637]
[1761318932095,3.389,3918.3,3918.1,0.2085]
[1761318932288,3.389,3918.3,3918.1,0.6556]
[1761318932455,3.389,3918.3,3918.2,2.99929233]
[1761318932657,3.389,3918.3,3918.1,0.2085]
[1761318932890,3.389,3918.3,3918.1,0.6556]
[1761318933191,0.001,3918.6,3918.1,3.20785747]
[1761318933192,3.399,3918.2,3918.1,3.20785747]
[1761318933386,3.399,3918.2,3918.1,0.6556]
[1761318933387,3.398,3918.2,3918.1,0.6556]
[1761318933590,3.398,3918.2,3918.1,3.20785747]
[1761318933980,0.001,3918.6,3918.5,2.55199693]
[1761318934376,3.188,3918.6,3918.5,2.99909693]
[1761318934591,3.398,3918.6,3918.5,2.99909693]
[1761318936304,3.3972,3918.6,3918.5,2.55199693]
[1761318936669,3.3972,3918.6,3918.5,2.99909693]
[1761318939615,3.3972,3918.6,3918.5,2.99489693]
[1761318940502,0.0002,3918.6,3918.5,2.99489693]
[1761318940816,3.3892,3918.6,3918.5,2.99489693]
[1761318941479,3.3862,3918.6,3918.5,2.99489693]
[1761318941903,0.0002,3918.6,3918.5,4.55009693]
[1761318942105,3.3852,3918.6,3918.5,4.67729693]
[1761318943427,0.0002,3918.6,3918.5,4.67729693]
[1761318946336,0.0002,3918.6,3918.5,1.5552]
[1761318946651,0.0002,3918.6,3918.3,1.5552]
[1761318946920,0.0002,3918.6,3918.5,2.55199693]
[1761318947425,0.0002,3918.6,3918.3,1.6832]
[1761318947628,0.0002,3918.6,3918.3,2.55212228]
[1761318947828,2.4382,3918.6,3918.5,2.55199693]
[1761318949018,0.0002,3918.6,3918.5,2.55199693]
[1761318949206,3.3772,3918.6,3918.5,2.99489693]
[1761318949409,3.3772,3918.6,3918.5,2.55399693]
[1761318949633,3.3772,3918.6,3918.5,2.99689693]
[1761318951522,0.0002,3918.6,3918.5,4.55209693]
[1761318951721,3.3722,3918.6,3918.5,4.55209693]
[1761318952152,0.0002,3918.6,3918.5,4.55209693]
[1761318953970,0.0002,3918.6,3918.5,4.10919693]
[1761318954124,0.0002,3918.6,3918.5,2.55399693]
[1761318954757,0.0002,3918.6,3918.5,2.99689693]
[1761318955663,0.0002,3918.6,3918.5,2.55399693]
[1761318955837,0.0002,3918.6,3918.5,2.99689693]
[1761318957626,0.0002,3918.6,3918.5,3.12409693]
[1761318959971,0.0002,3918.6,3918.5,0.1292]
[1761318960154,3.7998,3918.6,3918.5,0.002]
[1761318960469,0.1266,3918.7,3918.5,0.002]
[1761318960670,3.363,3918.9,3918.8,2.55180157]
[1761318960882,3.363,3918.9,3918.7,2.55181093]
[1761318961045,3.363,3918.9,3918.8,2.55180157]
[1761318961251,0.001,3919.0,3918.9,2.55173645]
[1761318961459,2.94,3919.0,3918.9,2.55173645]
[1761318961669,2.94,3919.0,3918.7,2.55184123]
[1761318961869,3.3766,3919.0,3918.8,2.55177881]
[1761318962262,2.94,3919.0,3918.9,2.55173645]
[1761318963354,2.94,3919.0,3918.5,0.002]
[1761318963355,3.3766,3919.0,3918.5,0.002]
[1761318963683,0.1272,3918.8,3918.5,0.002]
[1761318963980,0.1272,3918.8,3918.5,2.55395581]
[1761318964195,0.4366,3918.7,3918.5,0.002]
[1761318965790,2.55193181,3918.6,3918.5,0.002]
[1761318966158,2.55180339,3918.8,3918.5,0.002]
[1761318966159,3.05872743,3918.8,3918.5,0.002]
[1761318966551,3.357,3918.7,3918.5,0.002]
[1761318967051,0.001,3919.0,3918.5,2.5539406]
[1761318967246,3.358,3918.9,3918.8,2.55175652]
[1761318967995,3.358,3918.9,3918.7,2.55185221]
[1761318968745,0.001,3919.0,3918.9,2.55173645]
[1761318968943,3.358,3919.0,3918.5,0.002]
[1761318969317,0.6813,3918.9,3918.5,0.002]
[1761318969634,0.6813,3918.9,3918.5,2.55399282]
[1761318969836,0.2241,3918.9,3918.5,2.55399282]
[1761318970137,0.4572,3918.8,3918.5,0.002]
[1761318970630,0.2241,3918.9,3918.5,0.002]
[1761318971138,0.4572,3918.8,3918.5,0.002]
[1761318971515,0.2241,3918.9,3918.5,0.002]
[1761318971727,0.6813,3918.9,3918.5,0.002]
[1761318971927,3.23304544,3918.9,3918.5,0.002]
[1761318972148,0.4572,3918.8,3918.5,0.002]
[1761318972937,2.55272079,3919.0,3918.5,0.002]
[1761318973139,6.5870377,3918.9,3918.5,0.002]
[1761318973346,4.0353,3918.9,3918.5,0.002]
[1761318973542,0.4572,3918.8,3918.5,0.002]
[1761318974330,0.1272,3918.6,3918.5,0.002]
[1761318977568,0.1272,3918.6,3918.5,2.55399693]
[1761318977783,3.349,3918.6,3918.5,0.4361]
[1761318977928,3.349,3918.6,3918.5,2.55399648]
[1761318978432,3.349,3918.6,3918.5,4.54329648]